Workbook

Sheet Linear
A1: Parameter | B1: Value | F1: Equation of Function
A2: a | B2: =Controls!B2+Controls!B4*(Controls!B3-Controls!B2)/200 -> -2 | F2: =IF(B2<>0,CONCATENATE("y = ",B2,"x"),"y = 0") -> y = -2x
A3: k | B3: =Controls!C2+Controls!C4*(Controls!C3-Controls!C2)/200 -> -5 | F3: =IF(B3>0,CONCATENATE("y = x + ",B3),IF(B3=0,"y = x",CONCATENATE("y = x - ",ABS(B3)))) -> y = x - 5
A4: h | B4: =Controls!D2+Controls!D4*(Controls!D3-Controls!D2)/200 -> -5 | F4: =IF(B4>0,CONCATENATE("y = x - ",B4),IF(B4=0,"y = x",CONCATENATE("y = x + ",ABS(B4)))) -> y = x + 5
A6: x | B6: y = f(x) | C6: y = f(x-k) | D6: y = f(x) + h | E6: y = af(x)
A7: -5 | B7: =A7 -> -5 | C7: =(A7-$B$4) -> 0 | D7: =A7+$B$3 -> -10 | E7: =A7*$B$2 -> 10
A8: -4 | B8: =A8 -> -4 | C8: =(A8-$B$4) -> 1 | D8: =A8+$B$3 -> -9 | E8: =A8*$B$2 -> 8
A9: -3 | B9: -3 | C9: 2 | D9: -8 | E9: 6
A10: -2 | B10: -2 | C10: 3 | D10: -7 | E10: 4
A11: -1 | B11: -1 | C11: 4 | D11: -6 | E11: 2
A12: 0 | B12: 0 | C12: 5 | D12: -5 | E12: 0
A13: 1 | B13: 1 | C13: 6 | D13: -4 | E13: -2
A14: 2 | B14: 2 | C14: 7 | D14: -3 | E14: -4
A15: 3 | B15: 3 | C15: 8 | D15: -2 | E15: -6
A16: 4 | B16: 4 | C16: 9 | D16: -1 | E16: -8
A17: 5 | B17: 5 | C17: 10 | D17: 0 | E17: -10
A18: 6 | B18: 6 | C18: 11 | D18: 1 | E18: -12
A19: 7 | B19: 7 | C19: 12 | D19: 2 | E19: -14
A20: 8 | B20: 8 | C20: 13 | D20: 3 | E20: -16
A21: 9 | B21: 9 | C21: 14 | D21: 4 | E21: -18
A22: 10 | B22: 10 | C22: 15 | D22: 5 | E22: -20
A23: 11 | B23: 11 | C23: 16 | D23: 6 | E23: -22
A24: 12 | B24: 12 | C24: 17 | D24: 7 | E24: -24
A25: 13 | B25: 13 | C25: 18 | D25: 8 | E25: -26
A26: 14 | B26: 14 | C26: 19 | D26: 9 | E26: -28
A27: 15 | B27: 15 | C27: 20 | D27: 10 | E27: -30
A28: 16 | B28: 16 | C28: 21 | D28: 11 | E28: -32
A29: 17 | B29: 17 | C29: 22 | D29: 12 | E29: -34
A30: 18 | B30: 18 | C30: 23 | D30: 13 | E30: -36
A31: 19 | B31: 19 | C31: 24 | D31: 14 | E31: -38
A32: 20 | B32: 20 | C32: 25 | D32: 15 | E32: -40

Sheet Log
A1: Parameter | B1: Value | F1: Equation of Function
A2: a | B2: =Controls!B7+Controls!B9*(Controls!B8-Controls!B7)/200 -> -2 | F2: =IF(B2<>0,CONCATENATE("y = ",B2,"ln(x)"),"y = 0") -> y = -2ln(x)
A3: k | B3: =Controls!C7+Controls!C9*(Controls!C8-Controls!C7)/200 -> -5 | F3: =IF(B3>0,CONCATENATE("y = ln(x) + ",B3),IF(B3=0,"y = ln(x)",CONCATENATE("y = ln(x) - ",ABS(B3)))) -> y = ln(x) - 5
A4: h | B4: =Controls!D7+Controls!D9*(Controls!D8-Controls!D7)/200 -> -5 | F4: =IF(B4>0,CONCATENATE("y = ln(x - ",B4,")"),IF(B4=0,"y = ln(x)",CONCATENATE("y = ln(x + ",ABS(B4),")"))) -> y = ln(x + 5)
A6: x | B6: y = f(x) | C6: y = f(x-k) | D6: y = f(x) + h | E6: y = af(x)
A7: 1 | B7: =LN(A7) -> 0 | C7: =LN(A7-$B$4) -> 1.791759469 | D7: =LN(A7)+$B$3 -> -5 | E7: =$B$2*LN(A7) -> 0
A8: 2 | B8: =LN(A8) -> 0.6931471806 | C8: =LN(A8-$B$4) -> 1.945910149 | D8: =LN(A8)+$B$3 -> -4.306852819 | E8: =$B$2*LN(A8) -> -1.386294361
A9: 3 | B9: 1.098612289 | C9: 2.079441542 | D9: -3.901387711 | E9: -2.197224577
A10: 4 | B10: 1.386294361 | C10: 2.197224577 | D10: -3.613705639 | E10: -2.772588722
A11: 5 | B11: 1.609437912 | C11: 2.302585093 | D11: -3.390562088 | E11: -3.218875825
A12: 6 | B12: 1.791759469 | C12: 2.397895273 | D12: -3.208240531 | E12: -3.583518938
A13: 7 | B13: 1.945910149 | C13: 2.48490665 | D13: -3.054089851 | E13: -3.891820298
A14: 8 | B14: 2.079441542 | C14: 2.564949357 | D14: -2.920558458 | E14: -4.158883083
A15: 9 | B15: 2.197224577 | C15: 2.63905733 | D15: -2.802775423 | E15: -4.394449155
A16: 10 | B16: 2.302585093 | C16: 2.708050201 | D16: -2.697414907 | E16: -4.605170186
A17: 11 | B17: 2.397895273 | C17: 2.772588722 | D17: -2.602104727 | E17: -4.795790546
A18: 12 | B18: 2.48490665 | C18: 2.833213344 | D18: -2.51509335 | E18: -4.9698133
A19: 13 | B19: 2.564949357 | C19: 2.890371758 | D19: -2.435050643 | E19: -5.129898715
A20: 14 | B20: 2.63905733 | C20: 2.944438979 | D20: -2.36094267 | E20: -5.278114659
A21: 15 | B21: 2.708050201 | C21: 2.995732274 | D21: -2.291949799 | E21: -5.416100402
A22: 16 | B22: 2.772588722 | C22: 3.044522438 | D22: -2.227411278 | E22: -5.545177444
A23: 17 | B23: 2.833213344 | C23: 3.091042453 | D23: -2.166786656 | E23: -5.666426688
A24: 18 | B24: 2.890371758 | C24: 3.135494216 | D24: -2.109628242 | E24: -5.780743516
A25: 19 | B25: 2.944438979 | C25: 3.17805383 | D25: -2.055561021 | E25: -5.888877958
A26: 20 | B26: 2.995732274 | C26: 3.218875825 | D26: -2.004267726 | E26: -5.991464547

Sheet Exp
A1: Parameter | B1: Value | F1: Equation of Function
A2: a | B2: =Controls!B12+Controls!B14*(Controls!B13-Controls!B12)/200 -> -2 | F2: =IF(B2<>0,CONCATENATE("y = ",B2,"exp(x)"),"y = 0") -> y = -2exp(x)
A3: k | B3: =Controls!C12+Controls!C14*(Controls!C13-Controls!C12)/200 -> -5 | F3: =IF(B3>0,CONCATENATE("y = exp(x) + ",B3),IF(B3=0,"y = exp(x)",CONCATENATE("y = exp(x) - ",ABS(B3)))) -> y = exp(x) - 5
A4: h | B4: =Controls!D12+Controls!D14*(Controls!D13-Controls!D12)/200 -> -5 | F4: =IF(B4>0,CONCATENATE("y = exp(x - ",B4,")"),IF(B4=0,"y = exp(x)",CONCATENATE("y = exp(x + ",ABS(B4),")"))) -> y = exp(x + 5)
A6: x | B6: y = f(x) | C6: y = f(x-k) | D6: y = f(x) + h | E6: y = af(x)
A7: -2.5 | B7: =EXP(A7) -> 0.08208499862 | C7: =EXP(A7-$B$4) -> 12.18249396 | D7: =EXP(A7)+$B$3 -> -4.917915001 | E7: =$B$2*EXP(A7) -> -0.1641699972
A8: -2.25 | B8: =EXP(A8) -> 0.1053992246 | C8: =EXP(A8-$B$4) -> 15.64263188 | D8: =EXP(A8)+$B$3 -> -4.894600775 | E8: =$B$2*EXP(A8) -> -0.2107984491
A9: -2 | B9: 0.1353352832 | C9: 20.08553692 | D9: -4.864664717 | E9: -0.2706705665
A10: -1.75 | B10: 0.1737739435 | C10: 25.79033992 | D10: -4.826226057 | E10: -0.3475478869
A11: -1.5 | B11: 0.2231301601 | C11: 33.11545196 | D11: -4.77686984 | E11: -0.4462603203
A12: -1.25 | B12: 0.2865047969 | C12: 42.521082 | D12: -4.713495203 | E12: -0.5730095937
A13: -1 | B13: 0.3678794412 | C13: 54.59815003 | D13: -4.632120559 | E13: -0.7357588823
A14: -0.75 | B14: 0.4723665527 | C14: 70.10541235 | D14: -4.527633447 | E14: -0.9447331055
A15: -0.5 | B15: 0.6065306597 | C15: 90.0171313 | D15: -4.39346934 | E15: -1.213061319
A16: -0.25 | B16: 0.7788007831 | C16: 115.5842845 | D16: -4.221199217 | E16: -1.557601566
A17: 0 | B17: 1 | C17: 148.4131591 | D17: -4 | E17: -2
A18: 0.25 | B18: 1.284025417 | C18: 190.5662685 | D18: -3.715974583 | E18: -2.568050833
A19: 0.5 | B19: 1.648721271 | C19: 244.6919323 | D19: -3.351278729 | E19: -3.297442541
A20: 0.75 | B20: 2.117000017 | C20: 314.1906603 | D20: -2.882999983 | E20: -4.234000033
A21: 1 | B21: 2.718281828 | C21: 403.4287935 | D21: -2.281718172 | E21: -5.436563657
A22: 1.25 | B22: 3.490342957 | C22: 518.0128247 | D22: -1.509657043 | E22: -6.980685915
A23: 1.5 | B23: 4.48168907 | C23: 665.141633 | D23: -0.5183109297 | E23: -8.963378141
A24: 1.75 | B24: 5.754602676 | C24: 854.0587625 | D24: 0.754602676 | E24: -11.50920535
A25: 2 | B25: 7.389056099 | C25: 1096.633158 | D25: 2.389056099 | E25: -14.7781122
A26: 2.25 | B26: 9.487735836 | C26: 1408.104848 | D26: 4.487735836 | E26: -18.97547167
A27: 2.5 | B27: 12.18249396 | C27: 1808.042414 | D27: 7.182493961 | E27: -24.36498792
A28: 2.75 | B28: 15.64263188 | C28: 2321.572415 | D28: 10.64263188 | E28: -31.28526377
A29: 3 | B29: 20.08553692 | C29: 2980.957987 | D29: 15.08553692 | E29: -40.17107385
A30: 3.25 | B30: 25.79033992 | C30: 3827.625821 | D30: 20.79033992 | E30: -51.58067983
A31: 3.5 | B31: 33.11545196 | C31: 4914.76884 | D31: 28.11545196 | E31: -66.23090392
A32: 3.75 | B32: 42.521082 | C32: 6310.688108 | D32: 37.521082 | E32: -85.042164
A33: 4 | B33: 54.59815003 | C33: 8103.083928 | D33: 49.59815003 | E33: -109.1963001
A34: 4.25 | B34: 70.10541235 | C34: 10404.56572 | D34: 65.10541235 | E34: -140.2108247
A35: 4.5 | B35: 90.0171313 | C35: 13359.72683 | D35: 85.0171313 | E35: -180.0342626
A36: 4.75 | B36: 115.5842845 | C36: 17154.22881 | D36: 110.5842845 | E36: -231.1685691
A37: 5 | B37: 148.4131591 | C37: 22026.46579 | D37: 143.4131591 | E37: -296.8263182

Sheet Square
A1: Parameter | B1: Value | F1: Equation of Function
A2: a | B2: =Controls!B17+Controls!B19*(Controls!B18-Controls!B17)/200 -> -2 | F2: =IF(B2<>0,CONCATENATE("y = ",B2,"x^2"),"y = 0") -> y = -2x^2
A3: k | B3: =Controls!C17+Controls!C19*(Controls!C18-Controls!C17)/200 -> -50 | F3: =IF(B3>0,CONCATENATE("y = x^2 + ",B3),IF(B3=0,"y = x^2",CONCATENATE("y = x^2 - ",ABS(B3)))) -> y = x^2 - 50
A4: h | B4: =Controls!D17+Controls!D19*(Controls!D18-Controls!D17)/200 -> -5 | F4: =IF(B4>0,CONCATENATE("y = (x - ",B4,")^2"),IF(B4=0,"y = x^2",CONCATENATE("y = (x + ",ABS(B4),")^2"))) -> y = (x + 5)^2
A6: x | B6: y = f(x) | C6: y = f(x-k) | D6: y = f(x) + h | E6: y = af(x)
A7: -10 | B7: =A7^2 -> 100 | C7: =(A7-$B$4)^2 -> 25 | D7: =A7^2+$B$3 -> 50 | E7: =$B$2*A7^2 -> -200
A8: -9 | B8: =A8^2 -> 81 | C8: =(A8-$B$4)^2 -> 16 | D8: =A8^2+$B$3 -> 31 | E8: =$B$2*A8^2 -> -162
A9: -8 | B9: 64 | C9: 9 | D9: 14 | E9: -128
A10: -7 | B10: 49 | C10: 4 | D10: -1 | E10: -98
A11: -6 | B11: 36 | C11: 1 | D11: -14 | E11: -72
A12: -5 | B12: 25 | C12: 0 | D12: -25 | E12: -50
A13: -4 | B13: 16 | C13: 1 | D13: -34 | E13: -32
A14: -3 | B14: 9 | C14: 4 | D14: -41 | E14: -18
A15: -2 | B15: 4 | C15: 9 | D15: -46 | E15: -8
A16: -1 | B16: 1 | C16: 16 | D16: -49 | E16: -2
A17: 0 | B17: 0 | C17: 25 | D17: -50 | E17: 0
A18: 1 | B18: 1 | C18: 36 | D18: -49 | E18: -2
A19: 2 | B19: 4 | C19: 49 | D19: -46 | E19: -8
A20: 3 | B20: 9 | C20: 64 | D20: -41 | E20: -18
A21: 4 | B21: 16 | C21: 81 | D21: -34 | E21: -32
A22: 5 | B22: 25 | C22: 100 | D22: -25 | E22: -50
A23: 6 | B23: 36 | C23: 121 | D23: -14 | E23: -72
A24: 7 | B24: 49 | C24: 144 | D24: -1 | E24: -98
A25: 8 | B25: 64 | C25: 169 | D25: 14 | E25: -128
A26: 9 | B26: 81 | C26: 196 | D26: 31 | E26: -162
A27: 10 | B27: 100 | C27: 225 | D27: 50 | E27: -200
A28: 11 | B28: 121 | C28: 256 | D28: 71 | E28: -242
A29: 12 | B29: 144 | C29: 289 | D29: 94 | E29: -288
A30: 13 | B30: 169 | C30: 324 | D30: 119 | E30: -338
A31: 14 | B31: 196 | C31: 361 | D31: 146 | E31: -392
A32: 15 | B32: 225 | C32: 400 | D32: 175 | E32: -450

Sheet SqRoot
A1: Parameter | B1: Value | F1: Equation of Function
A2: a | B2: =Controls!B22+Controls!B24*(Controls!B23-Controls!B22)/200 -> -2 | F2: =IF(B2<>0,CONCATENATE("y = ",B2,"sqrt(x)"),"y = 0") -> y = -2sqrt(x)
A3: k | B3: =Controls!C22+Controls!C24*(Controls!C23-Controls!C22)/200 -> -5 | F3: =IF(B3>0,CONCATENATE("y = sqrt(x) + ",B3),IF(B3=0,"y = sqrt(x)",CONCATENATE("y = sqrt(x) - ",ABS(B3)))) -> y = sqrt(x) - 5
A4: h | B4: =Controls!D22+Controls!D24*(Controls!D23-Controls!D22)/200 -> -5 | F4: =IF(B4>0,CONCATENATE("y = sqrt(x - ",B4,")"),IF(B4=0,"y = sqrt(x)",CONCATENATE("y = sqrt(x + ",ABS(B4),")"))) -> y = sqrt(x + 5)
A6: x | B6: y = f(x) | C6: y = f(x-k) | D6: y = f(x) + h | E6: y = af(x)
A7: 0 | B7: =SQRT(A7) -> 0 | C7: =SQRT(A7-$B$4) -> 2.236067977 | D7: =SQRT(A7)+$B$3 -> -5 | E7: =$B$2*SQRT(A7) -> 0
A8: 1 | B8: =SQRT(A8) -> 1 | C8: =SQRT(A8-$B$4) -> 2.449489743 | D8: =SQRT(A8)+$B$3 -> -4 | E8: =$B$2*SQRT(A8) -> -2
A9: 2 | B9: 1.414213562 | C9: 2.645751311 | D9: -3.585786438 | E9: -2.828427125
A10: 3 | B10: 1.732050808 | C10: 2.828427125 | D10: -3.267949192 | E10: -3.464101615
A11: 4 | B11: 2 | C11: 3 | D11: -3 | E11: -4
A12: 5 | B12: 2.236067977 | C12: 3.16227766 | D12: -2.763932023 | E12: -4.472135955
A13: 6 | B13: 2.449489743 | C13: 3.31662479 | D13: -2.550510257 | E13: -4.898979486
A14: 7 | B14: 2.645751311 | C14: 3.464101615 | D14: -2.354248689 | E14: -5.291502622
A15: 8 | B15: 2.828427125 | C15: 3.605551275 | D15: -2.171572875 | E15: -5.656854249
A16: 9 | B16: 3 | C16: 3.741657387 | D16: -2 | E16: -6
A17: 10 | B17: 3.16227766 | C17: 3.872983346 | D17: -1.83772234 | E17: -6.32455532
A18: 11 | B18: 3.31662479 | C18: 4 | D18: -1.68337521 | E18: -6.633249581
A19: 12 | B19: 3.464101615 | C19: 4.123105626 | D19: -1.535898385 | E19: -6.92820323
A20: 13 | B20: 3.605551275 | C20: 4.242640687 | D20: -1.394448725 | E20: -7.211102551
A21: 14 | B21: 3.741657387 | C21: 4.358898944 | D21: -1.258342613 | E21: -7.483314774
A22: 15 | B22: 3.872983346 | C22: 4.472135955 | D22: -1.127016654 | E22: -7.745966692
A23: 16 | B23: 4 | C23: 4.582575695 | D23: -1 | E23: -8
A24: 17 | B24: 4.123105626 | C24: 4.69041576 | D24: -0.8768943744 | E24: -8.246211251
A25: 18 | B25: 4.242640687 | C25: 4.795831523 | D25: -0.7573593129 | E25: -8.485281374
A26: 19 | B26: 4.358898944 | C26: 4.898979486 | D26: -0.6411010565 | E26: -8.717797887
A27: 20 | B27: 4.472135955 | C27: 5 | D27: -0.527864045 | E27: -8.94427191
A28: 21 | B28: 4.582575695 | C28: 5.099019514 | D28: -0.417424305 | E28: -9.16515139
A29: 22 | B29: 4.69041576 | C29: 5.196152423 | D29: -0.3095842402 | E29: -9.38083152
A30: 23 | B30: 4.795831523 | C30: 5.291502622 | D30: -0.2041684767 | E30: -9.591663047
A31: 24 | B31: 4.898979486 | C31: 5.385164807 | D31: -0.1010205144 | E31: -9.797958971
A32: 25 | B32: 5 | C32: 5.477225575 | D32: 0 | E32: -10

Sheet Reciprocal
A1: Parameter | B1: Value | F1: Equation of Function
A2: a | B2: =Controls!B27+Controls!B29*(Controls!B28-Controls!B27)/200 -> -2 | F2: =IF(B2<>0,CONCATENATE("y = ",B2,"/x"),"y = 0") -> y = -2/x
A3: k | B3: =Controls!C27+Controls!C29*(Controls!C28-Controls!C27)/200 -> -5 | F3: =IF(B3>0,CONCATENATE("y = (1/x) + ",B3),IF(B3=0,"y = (1/x)",CONCATENATE("y = (1/x) - ",ABS(B3)))) -> y = (1/x) - 5
A4: h | B4: =Controls!D27+Controls!D29*(Controls!D28-Controls!D27)/200 -> 5 | F4: =IF(B4>0,CONCATENATE("y = 1/(x - ",B4,")"),IF(B4=0,"y = 1/x",CONCATENATE("y = 1/(x + ",ABS(B4),")"))) -> y = 1/(x - 5)
A6: x | B6: y = f(x) | C6: y = f(x-k) | D6: y = f(x) + h | E6: y = af(x)
A7: 0.25 | B7: =1/A7 -> 4 | C7: =1/(A7-$B$4) -> -0.2105263158 | D7: =1/A7+$B$3 -> -1 | E7: =$B$2/A7 -> -8
A8: 0.75 | B8: =1/A8 -> 1.333333333 | C8: =1/(A8-$B$4) -> -0.2352941176 | D8: =1/A8+$B$3 -> -3.666666667 | E8: =$B$2/A8 -> -2.666666667
A9: 1.25 | B9: 0.8 | C9: -0.2666666667 | D9: -4.2 | E9: -1.6
A10: 1.75 | B10: 0.5714285714 | C10: -0.3076923077 | D10: -4.428571429 | E10: -1.142857143
A11: 2.25 | B11: 0.4444444444 | C11: -0.3636363636 | D11: -4.555555556 | E11: -0.8888888889
A12: 2.75 | B12: 0.3636363636 | C12: -0.4444444444 | D12: -4.636363636 | E12: -0.7272727273
A13: 3.25 | B13: 0.3076923077 | C13: -0.5714285714 | D13: -4.692307692 | E13: -0.6153846154
A14: 3.75 | B14: 0.2666666667 | C14: -0.8 | D14: -4.733333333 | E14: -0.5333333333
A15: 4.25 | B15: 0.2352941176 | C15: -1.333333333 | D15: -4.764705882 | E15: -0.4705882353
A16: 4.75 | B16: 0.2105263158 | C16: -4 | D16: -4.789473684 | E16: -0.4210526316
A17: 5.25 | B17: 0.1904761905 | C17: 4 | D17: -4.80952381 | E17: -0.380952381
A18: 5.75 | B18: 0.1739130435 | C18: 1.333333333 | D18: -4.826086957 | E18: -0.347826087
A19: 6.25 | B19: 0.16 | C19: 0.8 | D19: -4.84 | E19: -0.32
A20: 6.75 | B20: 0.1481481481 | C20: 0.5714285714 | D20: -4.851851852 | E20: -0.2962962963
A21: 7.25 | B21: 0.1379310345 | C21: 0.4444444444 | D21: -4.862068966 | E21: -0.275862069
A22: 7.75 | B22: 0.1290322581 | C22: 0.3636363636 | D22: -4.870967742 | E22: -0.2580645161
A23: 8.25 | B23: 0.1212121212 | C23: 0.3076923077 | D23: -4.878787879 | E23: -0.2424242424
A24: 8.75 | B24: 0.1142857143 | C24: 0.2666666667 | D24: -4.885714286 | E24: -0.2285714286
A25: 9.25 | B25: 0.1081081081 | C25: 0.2352941176 | D25: -4.891891892 | E25: -0.2162162162
A26: 9.75 | B26: 0.1025641026 | C26: 0.2105263158 | D26: -4.897435897 | E26: -0.2051282051
A27: 10.25 | B27: 0.09756097561 | C27: 0.1904761905 | D27: -4.902439024 | E27: -0.1951219512
A28: 10.75 | B28: 0.09302325581 | C28: 0.1739130435 | D28: -4.906976744 | E28: -0.1860465116
A29: 11.25 | B29: 0.08888888889 | C29: 0.16 | D29: -4.911111111 | E29: -0.1777777778
A30: 11.75 | B30: 0.08510638298 | C30: 0.1481481481 | D30: -4.914893617 | E30: -0.170212766
A31: 12.25 | B31: 0.08163265306 | C31: 0.1379310345 | D31: -4.918367347 | E31: -0.1632653061

Sheet Controls (hidden)
A1: Linear | B1: a | C1: h | D1: k
A2: Min | B2: -2 | C2: -5 | D2: -5
A3: Max | B3: 2 | C3: 5 | D3: 5
A4: Reading | B4: 0 | C4: 0 | D4: 0
A6: Log | B6: a | C6: h | D6: k
A7: Min | B7: -2 | C7: -5 | D7: -5
A8: Max | B8: 2 | C8: 5 | D8: 5
A9: Reading | B9: 0 | C9: 0 | D9: 0
A11: Exp | B11: a | C11: h | D11: k
A12: Min | B12: -2 | C12: -5 | D12: -5
A13: Max | B13: 2 | C13: 5 | D13: 5
A14: Reading | B14: 0 | C14: 0 | D14: 0
A16: Square | B16: a | C16: h | D16: k
A17: Min | B17: -2 | C17: -50 | D17: -5
A18: Max | B18: 2 | C18: 50 | D18: 5
A19: Reading | B19: 0 | C19: 0 | D19: 0
A21: Sq Root | B21: a | C21: h | D21: k
A22: Min | B22: -2 | C22: -5 | D22: -5
A23: Max | B23: 2 | C23: 5 | D23: 5
A24: Reading | B24: 0 | C24: 0 | D24: 0
A26: Reciprocal | B26: a | C26: h | D26: k
A27: Min | B27: -2 | C27: -5 | D27: -5
A28: Max | B28: 2 | C28: 5 | D28: 5
A29: Reading | B29: 0 | C29: 0 | D29: 200
